bitfinex-derivatives/quotes_SOLF0:USTF0_20250821
["timestamp","ask_amount","ask_price","bid_price","bid_amount"]
[1755761503238,2.30618344,186.7,186.65,2.97]
[1755761503440,1.16,186.68,186.65,2.97]
[1755761503642,2.30618344,186.7,186.66,2.97]
[1755761503944,1.16,186.69,186.66,2.97]
[1755761504139,1.16,186.71,186.67,2.97]
[1755761504345,1.16,186.7,186.67,2.97]
[1755761506349,2.30618344,186.69,186.61,2.97]
[1755761506848,2.30618344,186.7,186.61,2.97]
[1755761507350,2.30618344,186.7,186.61,2.30618344]
[1755761507550,2.30618344,186.72,186.67,2.97]
[1755761507750,2.30618344,186.72,186.62,2.97]
[1755761509151,2.30618344,186.72,186.66,8.3271]
[1755761509552,3.46618344,186.72,186.68,2.97]
[1755761510251,1.16,186.71,186.67,5.357]
[1755761510454,1.16,186.71,186.66,5.3572]
[1755761510652,2.30618344,186.72,186.61,2.30618344]
[1755761510855,3.46618344,186.7,186.62,2.97]
[1755761511456,3.46618344,186.7,186.64,5.3577]
[1755761511756,2.30618344,186.7,186.62,2.97]
[1755761512661,2.30618344,186.7,186.67,2.97]
[1755761512957,2.30618344,186.7,186.66,5.3573]
[1755761513158,2.30618344,186.7,186.67,2.97]
[1755761514258,2.30618344,186.7,186.66,5.3573]
[1755761514259,3.46618344,186.7,186.65,5.3575]
[1755761514459,2.30618344,186.7,186.62,2.97]
[1755761514660,2.30618344,186.72,186.62,2.97]
[1755761514858,2.30618344,186.72,186.63,2.30618344]
[1755761515158,2.30618344,186.72,186.64,2.97]
[1755761515360,2.30618344,186.72,186.68,5.3567]
[1755761515562,2.30618344,186.72,186.7,2.97]
[1755761516261,1.15,186.73,186.68,5.3567]
[1755761516857,1.15,186.73,186.67,5.3569]
[1755761517062,1.15,186.73,186.67,3.01]
[1755761518053,1.15,186.73,186.68,5.3567]
[1755761518262,1.15,186.73,186.69,3.01]
[1755761518765,1.15,186.73,186.7,3.01]
[1755761519964,2.30618344,186.74,186.71,3.01]
[1755761520160,3.45618344,186.74,186.71,3.01]
[1755761520356,3.45618344,186.74,186.65,3.01]
[1755761520562,3.45618344,186.74,186.67,3.01]
[1755761521072,3.45618344,186.74,186.67,8.3668]
[1755761521364,1.15,186.73,186.67,3.01]
[1755761521559,2.30618344,186.74,186.69,5.3564]
[1755761521765,2.30618344,186.74,186.64,2.30618344]
[1755761522065,2.30618344,186.74,186.65,3.01]
[1755761522264,2.30618344,186.74,186.69,5.3563]
[1755761522464,2.30618344,186.74,186.71,3.01]
[1755761522662,2.30618344,186.74,186.72,3.01]
[1755761522864,132.02,186.8,186.68,3.01]
[1755761523063,3.45618344,186.79,186.68,3.01]
[1755761523463,3.45618344,186.79,186.74,3.01]
[1755761523657,3.45618344,186.79,186.64,4.48353986]
[1755761523658,2.30618344,186.79,186.7,2.30618344]
[1755761523864,2.30618344,186.79,186.76,3.01]
[1755761524058,3.45618344,186.79,186.76,3.01]
[1755761524664,2.30618344,186.79,186.76,3.01]
[1755761525466,3.45618344,186.79,186.71,3.01]
[1755761525668,3.45618344,186.79,186.71,8.3658]
[1755761526368,3.45618344,186.79,186.71,3.01]
[1755761526666,3.45618344,186.79,186.68,2.30618344]
[1755761526868,3.45618344,186.79,186.69,3.01]
[1755761527069,3.45618344,186.82,186.72,3.01]
[1755761527265,3.45618344,186.82,186.73,1.99960385]
[1755761527464,3.45618344,186.82,186.75,3.01]
[1755761527665,3.45618344,186.82,186.76,1.99960385]
[1755761527858,1.15,186.81,186.77,1.99960385]
[1755761528060,1.15,186.81,186.75,3.01]
[1755761528266,1.15,186.8,186.76,3.01]
[1755761528569,1.15,186.8,186.77,3.01]
[1755761529369,1.15,186.8,186.74,5.355]
[1755761529569,1.15,186.8,186.74,3.01]
[1755761529870,1.15,186.8,186.74,8.365]
[1755761530466,1.15,186.8,186.75,2.00054112]
[1755761530669,1.15,186.8,186.76,2.00054112]
[1755761530970,1.15,186.8,186.77,2.00054112]
[1755761531170,1.15,186.8,186.76,3.01]
[1755761531470,1.15,186.8,186.77,5.01042346]
[1755761531665,1.15,186.8,186.77,3.01]
[1755761532068,3.45618344,186.82,186.77,3.01]
[1755761532264,1.15,186.81,186.77,3.01]
[1755761532771,1.15,186.81,186.78,3.01]
[1755761533068,5.9380025,186.83,186.72,2.30618344]
[1755761533266,3.45618344,186.87,186.77,3.01]
[1755761533466,3.45618344,186.87,186.78,5.00985515]
[1755761533674,3.45618344,186.87,186.79,5.00985515]
[1755761533870,3.45618344,186.87,186.8,1.99985515]
[1755761534072,3.45618344,186.87,186.81,1.99985515]
[1755761534275,1.15,186.86,186.82,1.99985515]
[1755761534474,1.15,186.86,186.83,1.99985515]
[1755761534673,1.15,186.85,186.79,3.01]
[1755761534870,1.15,186.85,186.8,1.99716503]
[1755761535064,1.15,186.85,186.81,1.99716503]
[1755761535377,1.15,186.84,186.82,1.99716503]
[1755761535670,1.15,186.84,186.77,8.364]
[1755761535869,1.15,186.81,186.78,1.99631251]
[1755761536070,1.15,186.8,186.79,1.99631251]
[1755761536271,1.15,186.8,186.76,3.01]
[1755761536472,2.30618344,186.81,186.78,3.01]
[1755761536773,2.30618344,186.81,186.79,1.99639985]
[1755761536974,1.15,186.84,186.73,2.30618344]
[1755761537170,3.45618344,186.84,186.75,3.01]
[1755761537365,3.45618344,186.84,186.78,5.3536]
[1755761537572,2.30618344,186.84,186.79,1.99638875]
[1755761537773,1.15,186.83,186.79,3.01]
[1755761539583,1.15,186.83,186.8,3.01]
[1755761539879,3.45618344,186.84,186.8,3.01]
[1755761540276,3.45618344,186.84,186.8,8.3632]
[1755761540880,2.30618344,186.84,186.8,3.01]
[1755761541182,3.45618344,186.84,186.8,3.01]
[1755761541478,1.15,186.82,186.78,3.01]
[1755761541679,3.45618344,186.8,186.75,3.01]
[1755761541874,1.15,186.79,186.76,2.0028998]
[1755761542071,2.30618344,186.82,186.77,5.0128998]
[1755761542275,2.30618344,186.8,186.78,2.0028998]
[1755761542481,1.15,186.79,186.73,5.3553]
[1755761542681,1.15,186.79,186.75,3.01]
[1755761542979,1.15,186.79,186.69,2.30618344]
[1755761542980,3.45618344,186.8,186.76,3.01]
[1755761543175,1.15,186.83,186.78,3.01]
[1755761543377,3.45618344,186.83,186.78,3.01]
[1755761543574,1.15,186.83,186.79,3.01]
[1755761543770,1.15,186.88,186.75,3.01]
[1755761543975,2.30618344,186.86,186.77,3.01]
[1755761544172,2.30618344,186.86,186.78,2.00253139]
[1755761544376,2.30618344,186.86,186.79,5.01253139]
[1755761544576,2.30618344,186.86,186.8,2.00253139]
[1755761544774,3.45618344,186.86,186.81,5.01253139]
[1755761544972,3.45618344,186.86,186.81,3.01]
[1755761545774,3.10727459,186.86,186.81,3.01]
[1755761546384,3.10727459,186.86,186.81,8.363]
[1755761547682,3.10727459,186.86,186.81,3.01]
[1755761548482,1.15,186.85,186.81,3.01]
[1755761549485,1.15,186.85,186.82,3.0]
[1755761549784,1.95727459,186.86,186.82,3.0]
[1755761549985,3.10727459,186.86,186.82,3.0]
[1755761550480,1.15,186.83,186.72,2.30618344]
[1755761550687,2.30618344,186.81,186.73,5.00143802]
[1755761550882,2.30618344,186.81,186.74,2.00143802]
[1755761551083,2.30618344,186.81,186.75,2.00143802]
[1755761551287,3.45618344,186.81,186.76,5.00143802]
[1755761551587,1.15,186.8,186.77,2.00143802]
[1755761551775,1.15,186.8,186.76,3.0]
[1755761551981,1.15,186.8,186.77,5.00193116]
[1755761552176,2.30618344,186.81,186.78,2.00227701]
[1755761552380,2.30618344,186.81,186.78,3.0]
[1755761552587,3.45618344,186.81,186.75,3.0]
[1755761552786,3.45618344,186.81,186.76,5.0023773]
[1755761552984,3.45618344,186.81,186.77,2.0023773]
[1755761553186,1.15,186.79,186.73,3.0]
[1755761553379,1.15,186.79,186.74,2.00262702]
[1755761553584,2.30618344,186.81,186.76,3.0]
[1755761553780,3.45618344,186.81,186.77,5.00276469]
[1755761553983,2.30618344,186.81,186.79,3.0]
[1755761554384,2.30618344,186.83,186.79,3.0]
[1755761554679,2.30618344,186.83,186.73,3.0]
[1755761554990,2.30618344,186.85,186.75,3.0]
[1755761555290,2.30618344,186.85,186.77,3.0]
[1755761555494,3.45618344,186.88,186.81,3.0]
[1755761555790,3.45618344,186.88,186.82,2.00288636]
[1755761555986,3.45618344,186.88,186.81,3.0]
[1755761556186,3.45618344,186.88,186.82,2.00273048]
[1755761556492,3.45618344,186.88,186.84,3.0]
[1755761557384,137.7980025,186.93,186.81,3.0]
[1755761557385,2.30618344,186.9,186.81,3.0]
[1755761557585,2.30618344,186.9,186.82,2.00289515]
[1755761557586,3.45618344,186.9,186.82,2.00289515]
[1755761557780,2.30618344,186.88,186.83,2.00289515]
[1755761557982,1.15,186.87,186.84,2.00289515]
[1755761558292,2.30618344,186.88,186.81,3.0]
[1755761558487,3.45618344,186.88,186.81,3.0]
[1755761558686,3.45618344,186.88,186.82,2.00300579]
[1755761558887,1.15,186.87,186.83,2.00300579]
[1755761559085,1.15,186.86,186.84,2.00300579]
[1755761559287,1.15,186.86,186.82,3.0]
[1755761559589,1.15,186.86,186.83,5.0033316]
[1755761559789,1.15,186.86,186.83,3.0]
[1755761559990,2.30618344,186.88,186.83,3.0]
[1755761560190,3.45618344,186.88,186.84,5.0033316]
[1755761560391,1.15,186.91,186.85,3.0]
[1755761560588,1.15,186.89,186.82,3.0]
[1755761560787,1.15,186.89,186.83,2.00361377]
[1755761560989,2.30618344,186.88,186.84,2.00361377]
[1755761561188,1.15,186.86,186.82,3.0]
[1755761561393,3.45618344,186.88,186.83,5.00406197]
[1755761561585,2.30618344,186.88,186.84,2.00406197]
[1755761561787,1.15,186.86,186.8,8.3532]
[1755761561983,2.30618344,186.86,186.81,2.00406197]
[1755761562289,3.45618344,186.84,186.77,3.0]
[1755761562489,3.45618344,186.84,186.78,2.0050055]
[1755761562691,3.45618344,186.84,186.79,5.0050055]
[1755761562890,3.45618344,186.84,186.8,5.0050055]
[1755761563192,2.30618344,186.84,186.81,5.0050055]
[1755761563392,2.30618344,186.86,186.83,3.0]
[1755761563593,3.45618344,186.88,186.84,2.0050055]
[1755761563793,3.45618344,186.88,186.83,3.0]
[1755761563993,1.15,186.86,186.84,2.00564662]
[1755761564196,1.15,186.86,186.8,3.0]
[1755761564393,1.15,186.85,186.81,5.00634848]
[1755761564593,1.15,186.85,186.82,2.00634848]
[1755761564793,1.15,186.85,186.83,2.00634848]
[1755761564990,1.15,186.85,186.81,3.0]
[1755761565188,1.15,186.85,186.82,2.00641687]
[1755761565391,1.15,186.85,186.83,2.00641687]
[1755761565592,1.15,186.85,186.81,3.0]
[1755761565901,11.22964463,186.93,186.82,2.00642578]
[1755761565902,1.15,186.83,186.82,2.00642578]
[1755761566202,1.15,186.83,186.77,3.0]
[1755761566497,1.15,186.83,186.78,5.00676111]
[1755761566698,1.15,186.83,186.79,2.00676111]
[1755761566898,1.15,186.83,186.8,2.00676111]
[1755761567097,1.15,186.83,186.81,2.00676111]
[1755761567290,1.15,186.83,186.78,3.0]
[1755761567492,1.15,186.82,186.79,2.00876136]
[1755761567794,1.15,186.82,186.77,5.3541]
[1755761567999,1.15,186.82,186.79,3.0]
[1755761568295,2.30618344,186.8,186.71,359.84]
[1755761568499,2.30618344,186.8,186.72,5.00932479]
[1755761568701,2.30618344,186.8,186.73,2.00932479]
[1755761568895,2.30618344,186.8,186.74,2.00932479]
[1755761569099,3.45618344,186.8,186.75,2.00932479]
[1755761569299,2.30618344,186.82,186.76,5.00932479]
[1755761569492,2.30618344,186.82,186.77,2.00932479]
[1755761569697,3.45618344,186.85,186.78,2.00932479]
[1755761569898,3.45618344,186.85,186.81,3.0]
[1755761570098,3.45618344,186.85,186.82,2.00932479]
[1755761570293,3.45618344,186.85,186.81,3.0]
[1755761570605,2.30618344,186.85,186.82,5.0103651]
[1755761570802,2.30618344,186.85,186.83,2.0103651]
[1755761571000,2.30618344,186.85,186.82,3.0]
[1755761571194,2.30618344,186.85,186.83,2.01033357]
[1755761571400,2.30618344,186.85,186.82,3.0]
[1755761571600,115.7741632,186.86,186.83,2.01069577]
[1755761571801,119.23034664,186.86,186.82,3.0]
[1755761572103,119.23034664,186.86,186.83,2.01069577]
[1755761572304,119.23034664,186.86,186.83,3.0]
[1755761572498,119.23034664,186.86,186.84,2.01078223]
[1755761572698,119.23034664,186.86,186.83,3.0]
[1755761572899,119.23034664,186.86,186.84,2.01078223]
[1755761573101,119.23034664,186.86,186.8,3.0]
[1755761573403,1.15,186.85,186.81,5.01078223]
[1755761573707,1.15,186.85,186.82,2.01078223]
[1755761573999,1.15,186.85,186.83,2.01078223]
[1755761574203,1.15,186.85,186.84,2.01078223]
[1755761574602,118.08034664,186.86,186.84,2.01078223]
[1755761574804,119.23034664,186.86,186.78,5.3538]
[1755761575104,119.23034664,186.86,186.79,5.01133524]
[1755761575307,119.23034664,186.86,186.8,2.01133524]
[1755761575502,119.23034664,186.86,186.81,5.01133524]
[1755761575800,1.15,186.83,186.82,2.01133524]
[1755761576997,1.15,186.83,186.77,3.0]
[1755761577201,2.30618344,186.82,186.78,2.85]
[1755761577398,2.30618344,186.82,186.79,4.8624047]
[1755761577602,2.30618344,186.82,186.8,4.8624047]
[1755761577801,2.30618344,186.85,186.81,2.0124047]
[1755761578009,2.30618344,186.85,186.83,2.85]
[1755761578204,2.30618344,186.85,186.84,6.81236594]
[1755761578410,1.14,186.87,186.84,6.81236594]
[1755761578704,1.14,186.87,186.85,2.0124047]
[1755761578909,1.14,186.87,186.83,2.85]
[1755761579206,1.14,186.86,186.84,6.81238696]
[1755761579404,1.14,186.86,186.85,2.01249025]
[1755761579600,1.14,186.86,186.85,6.81244559]
[1755761580005,8.24418594,186.88,186.85,6.81244559]
[1755761580311,1.14,186.87,186.8,2.85]
[1755761580505,1.14,186.87,186.81,6.81214912]
[1755761580803,1.14,186.87,186.83,2.85]
[1755761581006,1.14,186.83,186.77,2.85]
[1755761581209,1.14,186.83,186.78,2.0127309]
[1755761581410,1.14,186.83,186.79,2.0127309]
[1755761581606,2.30618344,186.81,186.8,2.0127309]
[1755761582108,1.14,186.84,186.8,2.0127309]
[1755761582409,2.30618344,186.82,186.81,2.0127309]
[1755761583409,2.30618344,186.84,186.81,2.0127309]
[1755761583608,2.30618344,186.84,186.82,2.01282214]
[1755761583810,2.30618344,186.84,186.83,2.85]
[1755761584109,2.30618344,186.86,186.83,4.86279884]
[1755761584306,2.30618344,186.86,186.75,2.30618344]
[1755761584512,3.44618344,186.86,186.8,2.85]
[1755761584710,3.44618344,186.86,186.81,2.01281198]
[1755761584910,3.44618344,186.86,186.82,4.86281198]
[1755761585209,1.14,186.85,186.83,2.01281198]
[1755761585511,2.30618344,186.86,186.84,2.01281198]
[1755761585812,2.30618344,186.86,186.8,2.85]
[1755761586107,2.30618344,186.86,186.81,2.01267172]
[1755761586412,3.44618344,186.86,186.82,4.86267172]
[1755761586612,3.44618344,186.86,186.83,2.01267172]
[1755761586813,1.14,186.85,186.84,2.01267172]
[1755761587110,3.44618344,186.85,186.84,2.01267172]
[1755761587312,2.30618344,186.85,186.84,2.01267172]
[1755761589218,3.44618344,186.85,186.84,2.01267172]
[1755761591011,2.30618344,186.85,186.84,4.86267172]
[1755761592217,2.30618344,186.87,186.84,4.86267172]
[1755761592417,2.30618344,186.87,186.85,4.86267172]
[1755761592712,2.30618344,186.87,186.86,2.01271769]
[1755761593714,134.10618344,186.9,186.87,2.85]
[1755761594016,2.30618344,186.9,186.88,2.01271769]
[1755761594317,2.30618344,186.92,186.89,4.86271769]
[1755761594518,5.9380025,186.93,186.9,2.01176803]
[1755761594718,3.44618344,186.92,186.85,2.85]
[1755761595011,2.30618344,186.92,186.86,2.01160378]
[1755761595211,2.30618344,186.92,186.88,2.85]
[1755761595420,2.30618344,186.92,186.9,2.85]
[1755761595620,2.30618344,186.93,186.91,2.85]
[1755761595816,2.30618344,186.93,186.92,2.01160378]
[1755761597518,134.08618344,186.95,186.92,4.86160378]
[1755761597718,134.08618344,186.95,186.93,2.01160378]
[1755761597917,134.08618344,186.95,186.94,2.01160378]
[1755761599026,135.23618344,186.95,186.94,2.01160378]
[1755761599227,135.23618344,186.95,186.94,2.00852274]
[1755761602029,134.08618344,186.95,186.94,2.00852274]
[1755761603234,135.23618344,186.95,186.94,2.00852274]
[1755761604237,135.23618344,186.95,186.89,2.85]
[1755761604434,3.45618344,186.95,186.9,2.00808082]
[1755761604635,3.45618344,186.95,186.91,4.85808082]
[1755761604932,3.45618344,186.95,186.92,2.00777191]
[1755761605130,3.45618344,186.95,186.93,2.00777191]
[1755761605326,3.45618344,186.95,186.94,2.00750286]
[1755761606034,131.74,186.99,186.94,4.83750286]
[1755761606035,2.30618344,186.98,186.94,4.83750286]
[1755761606234,131.74,186.99,186.87,2.30618344]
[1755761606235,2.30618344,186.96,186.95,2.00750286]
[1755761606427,3.45618344,186.96,186.95,2.00750286]
[1755761607132,3.45618344,186.96,186.95,2.00663574]
[1755761610536,3.45618344,186.96,186.95,2.00499883]
[1755761612837,3.45618344,186.96,186.76,10.7086]
[1755761612838,2.30618344,186.93,186.86,2.83]
[1755761614238,2.30618344,186.96,186.88,2.83]
[1755761614835,1.15,187.03,186.88,2.30618344]
[1755761615035,1.15,187.03,186.92,2.83]
[1755761615036,2.30618344,187.01,186.92,2.83]
[1755761615236,2.30618344,187.01,186.92,8.1796]
[1755761615441,2.30618344,187.01,186.93,2.83]
[1755761615737,2.30618344,187.01,186.95,2.83]
[1755761615938,3.45618344,187.01,186.97,2.83]
[1755761616139,3.45618344,187.01,186.98,5.09210375]
[1755761616334,1.15,187.0,186.99,5.09210375]
[1755761616633,2.30618344,187.01,186.99,5.09210375]
[1755761616938,2.30618344,187.01,187.0,5.09210375]
[1755761618240,3.45618344,187.01,187.0,5.09210375]
[1755761618741,3.45618344,187.01,186.95,2.83]
[1755761618935,2.30618344,186.98,186.95,2.83]
[1755761619142,2.30618344,186.98,186.92,5.3498]
[1755761619442,2.30618344,186.98,186.96,2.83]
[1755761620635,2.30618344,186.98,186.87,2.30618344]
[1755761620636,2.30618344,186.98,186.93,2.83]
[1755761620841,2.30618344,186.95,186.88,2.83]
[1755761621038,2.30618344,186.93,186.86,2.83]
[1755761621642,2.30618344,186.95,186.86,2.83]
[1755761621938,2.30618344,186.95,186.92,5.3498]
[1755761622136,2.30618344,186.97,186.92,5.3498]
[1755761622436,2.30618344,187.02,186.85,2.83]
[1755761622437,2.30618344,186.95,186.85,2.83]
[1755761622637,2.30618344,186.95,186.89,2.83]
[1755761623041,2.30618344,186.95,186.89,8.1807]
[1755761623338,2.30618344,186.95,186.9,2.83]
[1755761623641,2.30618344,186.95,186.85,2.83]
[1755761623841,1.15,186.98,186.91,2.83]
[1755761624038,1.15,186.98,186.84,361.94618344]
[1755761624039,2.30618344,186.95,186.84,361.94618344]
[1755761624239,2.30618344,186.95,186.93,2.83]
[1755761624439,2.30618344,186.95,186.85,2.83]
[1755761624639,2.30618344,186.95,186.86,2.30618344]
[1755761624839,2.30618344,186.97,186.87,4.78215134]
[1755761625039,2.30618344,186.97,186.89,2.83]
[1755761625241,2.30618344,186.95,186.91,2.83]
[1755761625442,2.30618344,186.95,186.93,2.83]
[1755761625640,2.30618344,186.95,186.94,4.78215134]
[1755761626038,1.15,187.0,186.94,4.78215134]
[1755761626339,1.15,187.0,186.96,2.83]
[1755761626643,2.30618344,186.97,186.96,2.83]
[1755761626942,2.30618344,186.97,186.96,4.78267591]
[1755761629346,2.30618344,186.97,186.96,4.7837769]
[1755761630643,1.15,187.0,186.96,9.77745682]
[1755761630945,1.15,187.0,186.97,6.94745682]
[1755761631146,1.15,187.0,186.98,6.94745682]
[1755761631347,2.30618344,186.99,186.96,2.83]
[1755761631538,1.15,187.0,186.97,6.96813382]
[1755761631743,1.15,187.0,186.98,6.96813382]
[1755761631939,1.15,187.0,186.99,6.96813382]
[1755761632143,1.15,187.0,186.94,5.3491]
[1755761632341,1.15,187.0,186.97,2.83]
[1755761632540,2.30618344,186.98,186.97,2.83]
[1755761633549,2.30618344,186.98,186.95,5.3489]
[1755761634142,2.30618344,186.98,186.96,2.83]
[1755761634348,2.30618344,186.99,186.97,2.83]
[1755761634547,2.30618344,186.99,186.98,2.83]
[1755761635150,1.15,187.03,186.98,2.83]
[1755761635346,2.30618344,187.02,186.91,2.83]
[1755761635850,2.30618344,187.03,186.91,2.83]
[1755761636150,1.14,187.16,187.03,3.01]
[1755761636349,1.14,187.16,186.93,2.30618344]
[1755761636350,2.30618344,187.07,187.04,3.01]
[1755761636652,2.30618344,187.07,187.05,3.01]
[1755761637150,2.30618344,187.09,187.06,3.01]
[1755761638350,3.44618344,187.09,187.06,3.01]
[1755761639653,3.44618344,187.09,187.02,3.01]
[1755761641454,2.30618344,187.06,187.03,3.01]
[1755761641847,2.30618344,187.11,186.96,2.30618344]
[1755761642053,2.30618344,187.07,186.97,3.01]
[1755761642447,2.30618344,187.07,187.0,5.3476]
[1755761642655,3.44618344,187.07,187.0,3.01]
[1755761643156,3.44618344,187.07,187.0,8.3574]
[1755761643348,2.30618344,187.09,187.01,3.01]
[1755761643752,2.30618344,187.09,187.03,3.01]
[1755761644162,2.30618344,187.09,187.04,4.90454544]
[1755761644365,3.44618344,187.09,187.05,7.91454544]
[1755761644653,3.44618344,187.07,187.06,4.90454544]
[1755761646060,3.44618344,187.07,186.97,5.3482]
[1755761646261,2.30618344,187.04,186.98,3.01]
[1755761647962,2.30618344,187.04,187.01,3.01]
[1755761648157,2.30618344,187.04,187.02,3.01]
[1755761648662,2.30618344,187.06,186.94,2.30618344]
[1755761648863,2.30618344,187.06,186.96,2.30618344]
[1755761649159,2.30618344,187.06,186.97,3.01]
[1755761649663,2.30618344,187.06,187.02,3.01]
[1755761649863,2.30618344,187.06,187.03,3.01]
[1755761650461,2.30618344,187.06,187.04,3.01]
[1755761651053,2.30618344,187.06,187.05,3.01]
[1755761651357,1.14,187.08,187.05,3.01]
[1755761651358,3.44618344,187.08,187.05,3.01]
[1755761651759,2.30618344,187.08,187.05,3.01]
[1755761652464,2.30618344,187.08,187.06,3.01]
[1755761653465,2.30618344,187.08,186.98,2.30618344]
[1755761653466,2.30618344,187.08,187.07,3.01]
[1755761653866,2.30618344,187.11,187.07,3.01]
[1755761654067,2.30618344,187.11,187.08,3.01]
[1755761655763,1.14,187.15,187.08,3.01]
[1755761655962,2.30618344,187.11,187.08,3.01]
[1755761656467,3.44618344,187.11,187.01,3.01]
[1755761656868,3.44618344,187.11,187.03,5.3465]
[1755761657070,3.44618344,187.11,187.04,3.01]
[1755761657469,3.44618344,187.11,187.04,8.3564]
[1755761657968,3.44618344,187.11,187.05,4.8068077]
[1755761658169,3.44618344,187.11,187.06,4.8068077]
[1755761658364,3.44618344,187.11,187.07,7.8168077]
[1755761658561,3.44618344,187.11,187.08,4.8068077]
[1755761658762,3.44618344,187.11,187.09,4.8068077]
[1755761658962,3.44618344,187.11,187.1,4.8068077]
[1755761659162,2.30618344,187.11,187.1,4.8068077]
[1755761659377,3.44618344,187.11,187.1,4.8068077]
[1755761659673,3.44618344,187.11,187.1,4.80789076]
[1755761663273,2.30618344,187.11,187.1,4.80789076]
[1755761666775,360.71,187.17,187.1,4.80789076]
[1755761666979,2.30618344,187.13,187.11,7.79789076]
[1755761667279,2.30618344,187.13,187.12,4.80789076]
[1755761667472,3.45618344,187.13,187.12,4.80789076]
[1755761668674,3.45618344,187.13,187.08,2.99]
[1755761668877,2.30618344,187.13,187.1,2.99]
[1755761669077,2.30618344,187.13,187.11,4.7906715]
[1755761669271,3.45618344,187.13,187.12,4.79108413]
[1755761669470,3.45618344,187.13,187.12,4.79094874]
[1755761672181,2.30618344,187.13,187.12,4.79094874]
[1755761672582,3.45618344,187.13,187.12,4.79094874]
[1755761675086,3.45618344,187.13,187.06,2.99]
[1755761675285,2.30618344,187.1,187.07,2.99]
[1755761675687,3.45618344,187.1,187.07,2.99]
[1755761676696,2.30618344,187.1,187.08,2.99]
[1755761677085,1.15,187.13,187.01,2.99]
[1755761677282,3.45618344,187.13,187.06,2.99]
[1755761677990,3.45618344,187.13,187.06,8.3358]
[1755761678294,3.45618344,187.13,187.07,4.96709661]
[1755761678588,3.45618344,187.13,187.08,1.97709661]
[1755761678789,2.30618344,187.13,187.11,2.99]
[1755761678990,131.52,187.19,187.12,4.96709661]
[1755761679190,2.30618344,187.15,187.13,1.97709661]
[1755761679392,3.45618344,187.15,187.14,1.97709661]
[1755761679794,3.45618344,187.15,187.14,6.93899966]
[1755761680794,2.30618344,187.15,187.14,6.93899966]
[1755761681190,2.30618344,187.15,187.14,6.94228003]
[1755761681692,3.45618344,187.15,187.14,6.94228003]
[1755761681896,2.30618344,187.15,187.14,6.94228003]
[1755761683094,3.45618344,187.15,187.14,6.94228003]
[1755761684194,2.30618344,187.15,187.14,6.94228003]
[1755761685898,131.52,187.19,187.14,6.94228003]
[1755761686093,1.15,187.18,187.15,6.94228003]
[1755761686298,1.15,187.17,187.16,6.94228003]
[1755761686493,1.15,187.17,187.1,2.99]
[1755761687195,2.30618344,187.15,187.05,2.30618344]
[1755761687394,2.30618344,187.15,187.13,2.99]
[1755761688399,3.45618344,187.15,187.06,5.3458]
[1755761688597,3.45618344,187.15,187.12,2.99]
[1755761688896,1.15,187.14,187.05,8.3359]
[1755761689101,2.30618344,187.13,187.06,2.99]
[1755761690504,3.45618344,187.13,187.06,2.99]
[1755761691203,1.15,187.12,187.06,2.99]
[1755761691503,2.30618344,187.11,187.0,2.30618344]
[1755761691702,2.30618344,187.11,187.1,2.99]
[1755761691997,2.30618344,187.12,187.1,2.99]
[1755761693103,2.30618344,187.12,187.11,2.99]
[1755761696299,2.30618344,187.13,187.05,5.346]
[1755761696503,2.30618344,187.13,187.06,2.77]
[1755761697003,2.30618344,187.13,187.07,2.77]
[1755761698400,2.30618344,187.13,187.08,1.93615182]
[1755761698599,2.30618344,187.13,187.09,1.93615182]
[1755761698903,2.30618344,187.11,187.1,1.93615182]
[1755761699505,2.30618344,187.11,187.1,4.70615182]
[1755761700300,3.44618344,187.11,187.1,1.93615182]
[1755761701200,1.14,187.1,187.03,2.77]
[1755761701405,2.30618344,187.05,186.99,80.27459467]
[1755761701598,2.30618344,187.07,187.0,2.77]